bitfinex/quotes_ETHUSD_20251023
["timestamp","ask_amount","ask_price","bid_price","bid_amount"]
[1761187160065,0.4064,3834.0,3833.5,2.60856553]
[1761187162844,0.2221,3833.9,3833.3,2.60871757]
[1761187163044,0.95277488,3833.9,3833.3,2.60871757]
[1761187163468,0.95277488,3833.9,3833.2,3.39232692]
[1761187163973,0.4045,3833.8,3833.3,2.6087169]
[1761187164168,3.293,3833.7,3833.3,2.6087169]
[1761187164471,3.6975,3833.7,3833.3,2.6087169]
[1761187165077,3.6975,3833.7,3833.4,2.60863983]
[1761187165280,3.6975,3833.7,3833.3,2.6087064]
[1761187167149,3.6975,3833.7,3833.2,3.39232128]
[1761187167484,0.4045,3833.6,3833.2,2.60877267]
[1761187167685,0.4045,3833.6,3833.3,2.60871404]
[1761187167889,0.4045,3833.6,3833.4,2.60864034]
[1761187168072,3.293,3833.7,3833.4,2.60864034]
[1761187168394,0.1304,3833.5,3833.4,2.60864034]
[1761187169470,0.1304,3833.5,3833.4,3.06794034]
[1761187170681,0.70104217,3834.4,3833.4,3.06794034]
[1761187170682,0.70104217,3834.5,3833.4,1.12759584]
[1761187170881,6.44,3834.7,3833.4,1.12759584]
[1761187170882,0.56085075,3834.4,3833.4,3.27692622]
[1761187171080,3.292,3834.4,3834.1,2.60811979]
[1761187171284,0.56085075,3834.3,3834.2,2.60810041]
[1761187171462,0.56085075,3834.3,3833.5,3.39198966]
[1761187171463,0.1304,3833.8,3833.7,2.60844614]
[1761187171850,0.1304,3833.8,3833.7,3.06774614]
[1761187172171,0.70204217,3835.0,3834.4,2.60792814]
[1761187172378,0.1304,3834.5,3834.4,2.60792814]
[1761187174079,3.4224,3834.5,3834.4,2.60792814]
[1761187174587,3.4224,3834.5,3834.1,1.46533788]
[1761187174893,0.1304,3834.3,3834.2,2.60804645]
[1761187175492,0.1304,3834.3,3834.2,3.06734645]
[1761187177793,0.1304,3834.3,3834.2,2.60804645]
[1761187180120,0.1304,3834.3,3833.5,2.61055695]
[1761187180121,0.93074,3834.3,3833.5,0.002]
[1761187180393,0.1304,3833.6,3833.5,2.61058223]
[1761187180596,3.4214,3833.6,3833.5,2.61058223]
[1761187180766,3.4214,3833.6,3833.5,3.06988223]
[1761187180968,3.4214,3833.6,3833.5,0.002]
[1761187181982,3.4214,3833.6,3833.5,2.61058223]
[1761187183675,3.4214,3833.6,3833.5,0.002]
[1761187184064,3.4214,3833.6,3833.5,2.61058223]
[1761187184481,3.4214,3833.6,3833.5,3.06988223]
[1761187188401,3.4214,3833.6,3833.5,2.61058223]
[1761187190628,3.4214,3833.6,3833.5,0.002]
[1761187190806,4.44349887,3833.6,3833.5,0.002]
[1761187191106,4.44351703,3833.6,3833.5,0.002]
[1761187191315,4.92393043,3833.6,3833.5,0.002]
[1761187194314,4.3616134,3833.6,3833.5,0.002]
[1761187194490,4.92384753,3833.6,3833.5,0.002]
[1761187196535,7.53236172,3833.6,3833.5,0.002]
[1761187199443,8.23515438,3833.6,3833.5,0.002]
[1761187200041,5.62664019,3833.6,3833.5,0.002]
[1761187200207,4.92384753,3833.6,3833.5,0.002]
[1761187200406,4.46404753,3833.6,3833.5,0.002]
[1761187200642,3.98063413,3833.6,3833.5,3.06628223]
[1761187200962,3.98063413,3833.6,3833.5,0.002]
[1761187201236,3.98063413,3833.6,3833.5,3.06628223]
[1761187201237,3.4184,3833.6,3833.5,3.06628223]
[1761187202536,3.4184,3833.6,3833.5,2.61058223]
[1761187203145,3.4184,3833.6,3833.5,0.002]
[1761187203641,3.98045676,3833.6,3833.5,0.002]
[1761187203841,3.4184,3833.6,3833.5,0.002]
[1761187205155,3.98052942,3833.6,3833.5,0.002]
[1761187205326,4.41812942,3833.6,3833.5,0.002]
[1761187205527,3.98052942,3833.6,3833.5,0.002]
[1761187205722,3.4184,3833.6,3833.5,3.06628223]
[1761187207108,3.4184,3833.6,3833.5,0.002]
[1761187207309,3.98085644,3833.6,3833.5,0.002]
[1761187208420,3.98101069,3833.6,3833.5,0.002]
[1761187212145,4.41361069,3833.6,3833.5,0.002]
[1761187214265,3.98101069,3833.6,3833.5,0.002]
[1761187216585,3.98101069,3833.6,3833.5,3.06628223]
[1761187219188,0.69301069,3833.6,3833.5,3.63378053]
[1761187219338,0.93612824,3834.3,3834.0,2.60824204]
[1761187219339,0.70279266,3834.3,3834.0,2.60824204]
[1761187219675,3.85093412,3834.2,3834.0,2.60824204]
[1761187219872,0.69333412,3834.1,3834.0,2.60824204]
[1761187220873,0.69333412,3834.1,3834.0,3.06394204]
[1761187222180,3.98133412,3834.1,3834.0,3.06394204]
[1761187222406,3.98133412,3834.1,3834.0,3.65301243]
[1761187224696,3.98133412,3834.1,3834.0,3.19731243]
[1761187224998,3.98133412,3834.1,3834.0,3.08284204]
[1761187227698,3.98133412,3834.1,3834.0,3.08484204]
[1761187228005,3.4184,3834.1,3834.0,3.08484204]
[1761187232000,3.4184,3834.1,3834.0,0.002]
[1761187232303,3.8612,3834.1,3834.0,0.002]
[1761187232798,3.4184,3834.1,3834.0,0.002]
[1761187233104,3.8612,3834.1,3834.0,0.002]
[1761187233504,3.4184,3834.1,3834.0,0.002]
[1761187234611,3.4184,3834.1,3834.0,2.61024204]
[1761187237093,3.4184,3834.1,3834.0,3.06694204]
[1761187237438,3.4184,3834.1,3834.0,2.61024204]
[1761187240723,3.4184,3834.1,3834.0,0.002]
[1761187241827,3.4184,3834.1,3834.0,2.61024204]
[1761187242123,3.4184,3834.1,3834.0,0.002]
[1761187242328,3.98068924,3834.1,3834.0,0.002]
[1761187242622,4.42348924,3834.1,3834.0,0.002]
[1761187247433,4.93611743,3834.1,3834.0,0.002]
[1761187247727,3.98068924,3834.1,3834.0,0.002]
[1761187252014,4.42348924,3834.1,3834.0,0.002]
[1761187255613,3.98068924,3834.1,3834.0,0.002]
[1761187256213,4.42348924,3834.1,3834.0,0.002]
[1761187256418,3.8612,3834.1,3834.0,0.002]
[1761187256630,3.98148464,3834.1,3834.0,0.002]
[1761187256830,4.42428464,3834.1,3834.0,0.002]
[1761187258540,3.98148464,3834.1,3834.0,0.002]
[1761187259444,4.42428464,3834.1,3834.0,0.002]
[1761187261852,4.93709868,3834.1,3834.0,0.002]
[1761187262431,4.42428464,3834.1,3834.0,0.002]
[1761187262631,5.12814044,3834.1,3834.0,0.002]
[1761187263715,4.68534044,3834.1,3834.0,0.002]
[1761187265521,5.12814044,3834.1,3834.0,0.002]
[1761187266853,4.42428464,3834.1,3834.0,0.002]
[1761187268932,7.03245865,3834.1,3834.0,0.002]
[1761187269121,4.42428464,3834.1,3834.0,0.002]
[1761187269325,3.98048464,3834.1,3834.0,0.002]
[1761187270433,7.03145865,3834.1,3834.0,0.002]
[1761187270631,7.9700253,3834.1,3834.0,0.002]
[1761187271046,7.03145865,3834.1,3834.0,0.002]
[1761187271253,7.96994304,3834.1,3834.0,0.002]
[1761187271657,4.42328464,3834.1,3834.0,0.002]
[1761187272240,3.98048464,3834.1,3834.0,0.002]
[1761187272466,4.91891879,3834.1,3834.0,0.002]
[1761187273070,7.9698928,3834.1,3834.0,0.002]
[1761187273655,7.03145865,3834.1,3834.0,0.002]
[1761187274854,7.9697356,3834.1,3834.0,0.002]
[1761187275764,7.03145865,3834.1,3834.0,0.002]
[1761187278081,8.43495203,3834.1,3834.0,0.002]
[1761187278281,7.53833865,3834.1,3834.0,0.002]
[1761187282688,7.03145865,3834.1,3834.0,0.002]
[1761187288393,6.58865865,3834.1,3834.0,0.002]
[1761187288594,4.91838961,3834.1,3834.0,0.002]
[1761187289867,7.52656362,3834.1,3834.0,0.002]
[1761187291298,7.96936362,3834.1,3834.0,0.002]
[1761187294601,7.03145865,3834.1,3834.0,0.002]
[1761187294798,7.96985844,3834.1,3834.0,0.002]
[1761187295289,7.52705844,3834.1,3834.0,0.002]
[1761187297293,6.58865865,3834.1,3834.0,0.002]
[1761187298210,3.98048464,3834.1,3834.0,0.002]
[1761187298510,6.58865865,3834.1,3834.0,0.002]
[1761187301415,6.58865865,3834.1,3834.0,0.4465]
[1761187301416,0.56308464,3834.1,3834.0,0.4465]
[1761187301798,0.56308464,3834.1,3834.0,1.19648246]
[1761187302109,0.56308464,3834.1,3834.0,3.8047245]
[1761187303583,0.56308464,3834.1,3834.0,3.49924204]
[1761187307914,0.56308464,3834.1,3834.0,0.891]
[1761187308087,0.56308464,3834.1,3834.0,0.4465]
[1761187308290,3.61475865,3834.1,3834.0,0.002]
[1761187308509,1.00658464,3834.1,3834.0,0.002]
[1761187308703,1.26616663,3834.1,3834.0,0.002]
[1761187309106,0.56308464,3834.1,3834.0,0.002]
[1761187309586,1.26619787,3834.1,3834.0,0.002]
[1761187311387,0.69348464,3834.1,3834.0,0.002]
[1761187311906,3.30165865,3834.1,3834.0,0.002]
[1761187312086,3.74515865,3834.1,3834.0,0.002]
[1761187312611,1.13698464,3834.1,3834.0,0.002]
[1761187312917,3.74515865,3834.1,3834.0,0.002]
[1761187314113,3.30165865,3834.1,3834.0,0.002]
[1761187314316,3.74515865,3834.1,3834.0,0.002]
[1761187315305,3.30165865,3834.1,3834.0,0.002]
[1761187317094,3.74515865,3834.1,3834.0,0.002]
[1761187319618,3.30165865,3834.1,3834.0,0.002]
[1761187319807,0.69348464,3834.1,3834.0,0.002]
[1761187320326,3.30165865,3834.1,3834.0,0.002]
[1761187321306,3.73575865,3834.1,3834.0,0.002]
[1761187323129,3.30165865,3834.1,3834.0,0.002]
[1761187323999,0.69348464,3834.1,3834.0,0.002]
[1761187324400,0.69348464,3834.1,3834.0,0.451]
[1761187324597,3.30165865,3834.1,3834.0,0.002]
[1761187325339,3.73575865,3834.1,3834.0,0.002]
[1761187325645,3.30165865,3834.1,3834.0,0.002]
[1761187326705,3.73575865,3834.1,3834.0,0.002]
[1761187331837,5.13925203,3834.1,3834.0,0.002]
[1761187332639,5.79783865,3834.1,3834.0,0.002]
[1761187332962,12.23783865,3834.1,3834.0,0.002]
[1761187335864,2.60844614,3833.7,3833.6,0.002]
[1761187336032,11.24491847,3833.7,3833.6,0.002]
[1761187336231,11.80691847,3833.7,3833.6,0.002]
[1761187337433,7.10961132,3833.7,3833.6,0.002]
[1761187337733,9.96857305,3833.7,3833.6,0.002]
[1761187337936,10.40017305,3833.7,3833.6,0.002]
[1761187340837,1.63086641,3833.7,3833.6,0.002]
[1761187341151,4.68246482,3833.7,3833.6,0.451]
[1761187341459,4.68246482,3833.7,3833.6,3.05951419]
[1761187341460,3.97948464,3833.7,3833.6,3.05951419]
[1761187341658,3.97948464,3833.7,3833.6,3.62652926]
[1761187342070,0.69348464,3833.7,3833.6,3.62652926]
[1761187342273,3.97948464,3833.7,3833.6,3.62652926]
[1761187342435,3.286,3833.7,3833.6,3.62652926]
[1761187342629,0.1304,3833.8,3833.7,2.60844614]
[1761187342843,0.1304,3833.8,3833.7,3.94200733]
[1761187343139,0.69266388,3833.8,3833.7,3.94200733]
[1761187344178,0.1304,3833.8,3833.7,3.94200733]
[1761187344377,0.70298018,3834.5,3834.2,2.60810599]
[1761187344536,3.84813573,3834.4,3834.3,0.4585]
[1761187344868,3.84813573,3834.4,3834.3,3.06653797]
[1761187345043,3.84813573,3834.4,3834.3,3.63400852]
[1761187345445,0.56213573,3834.4,3834.3,3.63400852]
[1761187345752,0.56213573,3834.8,3834.7,2.60776592]
[1761187346060,3.4164,3834.8,3834.7,2.60776592]
[1761187346261,0.56213573,3834.8,3834.7,3.19666592]
[1761187346490,0.001,3835.0,3834.9,2.60762992]
[1761187346867,0.001,3835.0,3834.9,3.06612992]
[1761187347790,0.001,3835.0,3834.9,3.19652992]
[1761187353296,0.001,3835.0,3834.9,3.20562992]
[1761187355599,0.001,3835.0,3834.9,3.98871629]
[1761187355800,0.001,3835.0,3834.9,5.02089242]
[1761187360174,0.001,3835.0,3834.9,2.4132625]
[1761187360514,0.001,3835.0,3834.9,1.25068637]
[1761187360718,0.001,3835.0,3834.9,3.85831629]
[1761187360879,0.001,3835.0,3834.9,1.25068637]
[1761187361188,0.001,3835.0,3834.9,3.07522992]
[1761187361406,0.001,3835.0,3834.9,3.20562992]
[1761187361792,0.001,3835.0,3834.9,2.73802992]
[1761187361993,0.001,3835.0,3834.9,3.20562992]
[1761187363230,0.001,3835.0,3834.9,0.1304]
[1761187363413,0.1314,3835.0,3834.7,2.6077453]
[1761187363818,0.1314,3835.0,3834.7,3.0687453]
[1761187364537,0.1314,3835.0,3834.7,0.461]
[1761187364823,0.1304,3834.8,3834.6,2.60777251]
[1761187365157,0.1304,3834.8,3834.4,0.78322949]
[1761187365292,0.1304,3834.8,3834.7,2.60776592]
[1761187365692,0.1304,3834.8,3834.7,3.07536592]
[1761187366598,0.1304,3834.8,3834.6,2.60783035]
[1761187366799,0.1304,3834.8,3834.5,1.5552]
[1761187366998,0.1304,3834.8,3834.5,4.63069989]
[1761187367198,0.1304,3834.8,3834.5,4.16309989]
[1761187367394,0.1304,3834.8,3834.5,4.63069989]
[1761187367611,0.1304,3834.8,3834.5,4.16309989]
[1761187367807,0.1304,3834.8,3834.6,0.4676]
[1761187368017,0.1304,3834.8,3834.7,2.60776592]
[1761187368497,0.1304,3834.8,3834.7,3.07536592]
[1761187368826,0.1304,3834.8,3834.7,0.4676]
[1761187370035,0.1304,3834.8,3834.5,4.16308745]
[1761187370245,0.1304,3834.8,3834.6,2.60782486]
[1761187373409,0.1304,3834.8,3834.5,2.0228]
[1761187373609,0.1304,3834.8,3834.5,4.16305536]
[1761187373809,0.1304,3834.8,3834.6,2.60781963]
[1761187375134,0.69289931,3834.8,3834.0,1.5572]
[1761187375429,0.1304,3834.6,3834.2,3.39138527]
[1761187375617,0.70298018,3834.4,3834.2,0.78328879]
[1761187375822,1.729613,3834.3,3834.0,0.002]
[1761187376007,0.56273282,3834.2,3834.0,0.002]
[1761187376209,3.17090683,3834.1,3834.0,0.002]
[1761187376636,3.63480683,3834.1,3834.0,0.002]
[1761187378021,6.92080683,3834.1,3834.0,0.002]
[1761187379832,7.62378701,3834.1,3834.0,0.002]
[1761187380231,6.35807401,3834.1,3834.0,0.002]
[1761187380551,7.62124478,3834.1,3834.0,0.002]
[1761187381351,6.91948324,3834.1,3834.0,0.002]
[1761187383830,4.31130923,3834.1,3834.0,0.002]
[1761187384038,6.91948324,3834.1,3834.0,0.002]
[1761187385620,7.04988324,3834.1,3834.0,0.002]
[1761187387923,6.58598324,3834.1,3834.0,0.002]
[1761187388758,7.04898324,3834.1,3834.0,0.002]
[1761187392242,6.58598324,3834.1,3834.0,0.002]
[1761187394154,7.04898324,3834.1,3834.0,0.002]
[1761187394327,0.69180923,3834.1,3834.0,0.002]
[1761187394524,3.4164,3834.1,3834.0,0.002]
[1761187394862,3.97780923,3834.1,3834.0,0.002]
[1761187395029,6.58598324,3834.1,3834.0,0.002]
[1761187396461,6.58698324,3834.1,3834.0,0.002]
[1761187399567,7.04998324,3834.1,3834.0,0.002]
[1761187400339,6.58698324,3834.1,3834.0,0.002]
[1761187400969,3.97880923,3834.1,3834.0,0.002]
[1761187401367,6.58698324,3834.1,3834.0,0.002]
[1761187402172,3.97880923,3834.1,3834.0,0.002]
[1761187402376,4.68057077,3834.1,3834.0,0.002]
[1761187402544,7.28874478,3834.1,3834.0,0.002]
[1761187403373,6.58698324,3834.1,3834.0,0.002]
[1761187403569,7.04518324,3834.1,3834.0,0.002]
[1761187405275,7.98256501,3834.1,3834.0,0.002]
[1761187405478,7.04518324,3834.1,3834.0,0.002]
[1761187412457,7.55206324,3834.1,3834.0,0.002]
[1761187418467,6.58698324,3834.1,3834.0,0.002]
[1761187418958,3.30098324,3834.1,3834.0,0.002]
[1761187419163,6.58698324,3834.1,3834.0,0.002]
[1761187421504,7.99461317,3834.1,3834.0,0.002]
[1761187422096,2.10043916,3834.1,3834.0,0.002]
[1761187422296,3.97880923,3834.1,3834.0,0.4443]
[1761187422876,4.91717327,3834.1,3834.0,0.4443]
[1761187423206,3.97880923,3834.1,3834.0,0.4443]
[1761187427718,0.69280923,3834.1,3834.0,0.4443]
[1761187427911,0.56240923,3834.1,3834.0,3.05254204]
[1761187428208,0.56240923,3834.1,3834.0,3.83590242]
[1761187432817,0.56240923,3834.1,3834.0,0.78536038]
[1761187433124,0.56240923,3834.1,3834.0,0.002]
[1761187434520,0.56240923,3834.1,3834.0,0.4443]
[1761187437107,0.56240923,3834.1,3834.0,3.05254204]
[1761187437325,0.56240923,3834.1,3834.0,1.01039793]
[1761187438119,0.56240923,3834.1,3834.0,3.61863997]
[1761187438337,3.4164,3834.1,3834.0,3.61863997]
[1761187438537,3.97780923,3834.1,3834.0,3.61863997]
[1761187439236,3.4164,3834.1,3834.0,3.61863997]
[1761187439932,3.4164,3834.1,3834.0,1.79377672]
[1761187440275,3.97827697,3834.1,3834.0,0.4443]
[1761187441130,3.97827697,3834.1,3834.0,0.002]
[1761187441507,3.84787697,3834.1,3834.0,3.04034204]
[1761187441715,3.97827697,3834.1,3834.0,3.04034204]
[1761187442100,3.97827697,3834.1,3834.0,0.4321]
[1761187442435,3.97827697,3834.1,3834.0,0.002]
[1761187442601,3.97827697,3834.1,3834.0,0.4321]
[1761187443734,3.97827697,3834.1,3834.0,0.002]
[1761187444644,3.97827697,3834.1,3834.0,0.78540129]
[1761187447926,3.97827697,3834.1,3834.0,0.002]
[1761187448125,4.41597697,3834.1,3834.0,0.002]
[1761187451259,5.11949866,3834.1,3834.0,0.002]
[1761187451579,7.02415098,3834.1,3834.0,0.002]
[1761187454672,4.41597697,3834.1,3834.0,0.002]
[1761187455070,7.02415098,3834.1,3834.0,0.002]
[1761187455568,3.97827697,3834.1,3834.0,0.002]
[1761187459586,3.97827697,3834.1,3834.0,0.4321]
[1761187459775,4.68204826,3834.1,3834.0,0.4321]
[1761187459980,3.97827697,3834.1,3834.0,0.4321]
[1761187460359,3.97827697,3834.1,3834.0,0.002]
[1761187461466,4.68204826,3834.1,3834.0,0.002]
[1761187461758,0.56287697,3834.1,3834.0,0.4321]
[1761187461958,0.56287697,3834.1,3834.0,3.34439146]
[1761187462157,0.56287697,3834.1,3834.0,4.12774365]
[1761187468392,0.56287697,3834.1,3834.0,3.69764365]
[1761187468898,0.56287697,3834.1,3834.0,4.13864365]
[1761187469900,0.56287697,3834.1,3834.0,0.443]
[1761187471598,0.56287697,3834.1,3834.0,0.002]
[1761187471806,0.69327697,3834.1,3834.0,0.002]
[1761187472892,1.39704826,3834.1,3834.0,0.002]
[1761187473092,1.85854826,3834.1,3834.0,0.002]
[1761187476103,4.46672227,3834.1,3834.0,0.002]
[1761187476581,1.15477697,3834.1,3834.0,0.002]
[1761187481405,3.76295098,3834.1,3834.0,0.002]
[1761187483023,1.15477697,3834.1,3834.0,0.002]
[1761187486524,0.69327697,3834.1,3834.0,0.002]
[1761187488526,1.15477697,3834.1,3834.0,0.002]
[1761187490827,0.69327697,3834.1,3834.0,0.002]
[1761187497233,0.69327697,3834.1,3834.0,0.443]
[1761187497551,3.97827697,3834.1,3834.0,0.443]
[1761187499857,3.97827697,3834.1,3834.0,0.002]
[1761187500257,3.97827697,3834.1,3834.0,0.78545857]
[1761187501034,0.56287697,3834.1,3834.0,0.78545857]
[1761187501246,4.43097697,3834.1,3834.0,0.78545857]
[1761187503155,3.97827697,3834.1,3834.0,0.78545857]
[1761187503326,3.97827697,3834.1,3834.0,1.23795857]
[1761187503729,3.97827697,3834.1,3834.0,3.84620061]
[1761187504243,3.97827697,3834.1,3834.0,3.39370061]
[1761187504560,3.97827697,3834.1,3834.0,3.84620061]
[1761187507326,3.97827697,3834.1,3834.0,4.49165715]
[1761187507727,3.97827697,3834.1,3834.0,3.39370061]
[1761187509057,3.97827697,3834.1,3833.2,0.002]
[1761187509058,2.747,3834.0,3833.2,0.002]
[1761187509258,4.67100251,3833.0,3832.9,0.002]
[1761187509469,4.67100251,3833.0,3832.7,0.002]
[1761187509470,0.50688,3832.8,3832.7,0.002]
[1761187509766,4.72613562,3832.8,3832.7,0.002]
[1761187509946,5.09775162,3832.8,3832.7,0.002]
[1761187510146,2.60932313,3832.5,3831.9,0.4545]
[1761187510464,0.93707878,3832.1,3831.9,0.4545]
[1761187510762,3.87187697,3832.0,3831.9,0.4545]
[1761187511465,3.87187697,3832.0,3831.9,1.23837004]
[1761187512363,4.57361412,3832.0,3831.9,1.23837004]
[1761187512564,4.57361412,3832.0,3831.9,4.23285079]
[1761187512869,3.87187697,3832.0,3831.9,4.23285079]
[1761187513473,3.87187697,3832.0,3831.9,0.78587004]
[1761187513656,5.54644966,3832.0,3831.9,0.002]
[1761187513836,0.56187697,3832.0,3831.9,0.002]
[1761187514032,3.87787697,3832.0,3831.9,0.002]
[1761187514259,4.81249793,3832.0,3831.9,0.002]
[1761187514574,7.68920127,3832.0,3831.9,0.002]
[1761187515072,6.75458031,3832.0,3831.9,0.002]
[1761187515267,7.68864261,3832.0,3831.9,0.002]
[1761187516164,6.75458031,3832.0,3831.9,0.002]
[1761187516379,7.68812012,3832.0,3831.9,0.002]
[1761187517234,6.75458031,3832.0,3831.9,0.002]
[1761187518278,9.33268031,3832.0,3831.1,0.002]
[1761187518578,7.98099956,3831.2,3831.1,0.002]
[1761187518737,11.86887653,3831.2,3831.1,0.002]
[1761187518941,12.13497653,3831.2,3831.1,0.002]
[1761187519144,12.26537653,3831.2,3831.1,0.002]
[1761187519353,8.95660522,3831.2,3831.1,0.002]
[1761187519566,12.26537653,3831.2,3831.1,0.002]
[1761187519748,12.36995183,3831.2,3831.1,0.002]
[1761187520360,13.76663414,3831.2,3831.1,0.002]
[1761187523551,12.36995183,3831.2,3831.1,0.002]
[1761187525449,3.11736894,3830.7,3830.3,0.002]
[1761187525682,7.00324591,3830.7,3830.3,0.002]
[1761187525887,7.13364591,3830.7,3830.3,0.002]
[1761187526097,7.50392339,3830.7,3830.3,0.002]
[1761187526265,6.99704339,3830.7,3830.3,0.002]
[1761187526463,6.62676591,3830.7,3830.3,0.002]
[1761187526682,4.01627697,3830.7,3830.3,0.002]
[1761187526885,4.01627697,3830.7,3830.3,0.4544]
[1761187527093,4.71254813,3830.7,3830.6,0.4544]
[1761187527806,4.01627697,3830.7,3830.6,3.84907709]
[1761187528003,4.01627697,3830.7,3830.6,4.4952488]
[1761187533221,0.69227697,3830.7,3830.6,4.4952488]
[1761187533392,0.56187697,3830.7,3830.6,4.4952488]
[1761187533576,3.1175734,3830.4,3830.3,0.002]
[1761187533777,6.89515636,3830.4,3830.3,0.002]
[1761187533980,2.61076155,3830.3,3830.2,0.002]
[1761187534249,4.72783852,3830.3,3830.2,0.002]
[1761187534599,4.98713852,3830.3,3830.2,0.002]
[1761187536847,6.8502382,3830.3,3830.2,0.002]
[1761187537455,2.61089788,3830.1,3829.9,0.002]
[1761187537622,8.3787067,3830.1,3829.9,0.002]
[1761187538137,4.67304605,3830.0,3829.9,0.002]
[1761187538312,7.82577768,3830.0,3829.9,0.002]
[1761187538511,5.49422302,3830.0,3829.9,0.002]
[1761187538927,5.59882758,3830.0,3829.9,0.002]
[1761187540451,2.61157062,3829.2,3828.5,0.4422]
[1761187540616,3.90587697,3829.1,3828.6,0.6708]
[1761187540810,0.56187697,3829.0,3828.7,0.4422]
[1761187541011,0.56187697,3828.9,3828.7,0.4422]
[1761187541211,3.90587697,3828.8,3828.7,0.4422]
[1761187542973,3.90587697,3828.8,3827.8,1.5552]
[1761187542974,4.56167887,3828.8,3827.8,1.5552]
[1761187543265,1.86759348,3828.3,3827.2,0.6673]
[1761187543424,1.86842539,3827.7,3827.3,0.4422]
[1761187543624,0.56187697,3827.6,3827.3,0.4422]
[1761187543854,0.1304,3827.4,3827.3,0.4422]
[1761187544169,0.69227697,3827.4,3827.3,0.4422]
[1761187544373,2.09287066,3827.4,3827.3,3.05500798]
[1761187545246,0.69227697,3827.4,3827.3,3.05500798]
[1761187545447,0.69227697,3827.4,3827.3,0.4422]
[1761187546173,0.69227697,3827.4,3827.3,3.05500798]
[1761187546331,2.09195381,3827.4,3827.3,0.4422]
[1761187547259,0.69227697,3827.4,3827.3,3.05500798]
[1761187547575,2.0917595,3827.4,3827.3,3.05500798]
[1761187548282,2.0917595,3827.4,3826.5,2.613301]
[1761187548283,0.50688,3827.0,3826.1,0.2179]
[1761187548569,1.86584402,3826.6,3826.1,0.2179]
[1761187548725,3.92387697,3826.5,3826.0,0.7422]
[1761187548925,1.39941995,3826.1,3826.0,0.7422]
[1761187549155,5.32329692,3826.1,3826.0,0.3]
[1761187549470,4.85586015,3826.1,3826.0,0.3]
[1761187550263,5.32329692,3826.1,3826.0,0.3]
[1761187552132,3.92387697,3826.1,3826.0,0.3]
[1761187552327,6.76870442,3826.1,3826.0,0.3]
[1761187552533,4.43305442,3826.1,3826.0,0.3]
[1761187552732,3.92387697,3826.1,3826.0,0.3]
[1761187553160,6.53750442,3826.1,3826.0,0.3]
[1761187553740,3.92387697,3826.1,3826.0,0.3]
[1761187554133,4.70908059,3826.1,3826.0,0.3]
[1761187554550,7.32270804,3826.1,3826.0,0.3]
[1761187554858,4.70908059,3826.1,3826.0,0.3]
[1761187555052,3.92387697,3826.1,3826.0,0.3]
[1761187555430,5.75830879,3826.1,3826.0,0.3]
[1761187555863,10.43401624,3826.1,3826.0,0.3]
[1761187556041,5.92127697,3826.1,3825.2,0.2286]
[1761187556228,0.69616205,3825.3,3825.2,2.84283474]
[1761187556435,3.92987697,3825.3,3825.2,2.84283474]
[1761187556635,3.92987697,3825.3,3825.2,3.38855591]
[1761187556636,0.56187697,3825.3,3825.2,3.38855591]
[1761187556829,0.56187697,3825.3,3825.2,3.83075591]
[1761187557581,3.368,3825.6,3825.5,2.61403738]
[1761187557736,3.9245799,3825.6,3825.3,0.4422]
[1761187557936,0.5565799,3825.5,3825.4,3.05630571]
[1761187558245,0.6869799,3825.5,3825.4,3.05630571]
[1761187561669,0.5565799,3825.5,3825.4,3.34310063]
[1761187562272,0.5565799,3825.5,3825.4,3.05630571]
[1761187563049,0.5565799,3825.5,3825.4,2.61410571]
[1761187563251,1.25274195,3825.5,3825.4,3.07790571]
[1761187563655,0.5565799,3825.5,3825.4,3.07790571]
[1761187564661,0.5565799,3825.5,3825.4,3.07990571]
[1761187564859,0.5565799,3825.5,3825.4,3.69831474]
[1761187565064,0.5565799,3825.5,3825.4,3.80257369]
[1761187565875,0.69616205,3826.0,3825.4,3.80257369]
[1761187566075,0.69616205,3826.0,3825.9,2.61376408]
[1761187566248,1.25492036,3826.0,3825.9,3.07756408]
[1761187566453,0.55875831,3826.0,3825.9,3.07756408]
[1761187567882,0.55875831,3826.0,3825.9,3.65974559]
[1761187568063,0.55875831,3826.0,3825.9,7.15314559]
[1761187568267,0.69616205,3826.6,3825.9,0.1304]
[1761187568587,2.61383594,3825.8,3825.4,0.002]
[1761187568787,0.2044,3825.5,3825.4,0.002]
[1761187568959,0.55980825,3825.5,3825.4,0.002]
[1761187569294,3.95180825,3825.5,3825.4,0.002]
[1761187569661,4.88556439,3825.5,3825.4,0.002]
[1761187569861,4.16160825,3825.5,3825.4,0.002]
[1761187571972,3.95180825,3825.5,3825.4,0.002]
[1761187572373,5.35194924,3825.5,3825.4,0.002]
[1761187572876,2.61418661,3825.3,3825.0,0.002]
[1761187573076,1.40405269,3825.1,3825.0,0.002]
[1761187573289,0.55980825,3825.1,3825.0,2.61637908]
[1761187573885,0.55980825,3825.1,3825.0,3.08017908]
[1761187575489,3.89069898,3825.1,3825.0,0.002]
[1761187575709,1.27638825,3825.1,3825.0,0.002]
[1761187575909,3.89069898,3825.1,3825.0,0.002]
[1761187576110,0.76950825,3825.1,3825.0,0.002]
[1761187576410,3.38381898,3825.1,3825.0,0.002]
[1761187576774,5.25077032,3825.1,3825.0,0.002]
[1761187577499,3.38381898,3825.1,3825.0,0.002]
[1761187577806,5.25077032,3825.1,3825.0,0.002]
[1761187578013,3.38381898,3825.1,3825.0,0.002]
[1761187578186,0.76950825,3825.1,3825.0,0.002]
[1761187578391,0.69020825,3825.1,3825.0,0.002]
[1761187579377,4.09620825,3825.1,3825.0,0.002]
[1761187579711,5.50300462,3825.1,3825.0,0.002]
[1761187579880,6.23758825,3825.1,3825.0,0.002]
[1761187580079,0.55980825,3825.1,3825.0,0.002]
[1761187580327,1.49760978,3825.1,3825.0,3.08017908]
[1761187580781,1.49760978,3825.1,3825.0,0.002]
[1761187580981,1.49760978,3825.1,3825.0,2.61637908]